bitfinex/quotes_SOLUSD_20250529
["timestamp","ask_amount","ask_price","bid_price","bid_amount"]
[1748504219037,28.11837738,172.77,172.72,26.65204115]
[1748504221653,7.86023072,172.74,172.67,18.64964886]
[1748504221866,7.86023072,172.73,172.69,18.64964886]
[1748504222153,7.86023072,172.73,172.68,7.86023072]
[1748504222834,7.86023072,172.73,172.68,0.14216157]
[1748504223034,7.86023072,172.73,172.68,8.00239229]
[1748504223631,5.78971746,172.72,172.68,8.00239229]
[1748504225873,5.78971746,172.72,172.68,0.14216157]
[1748504226064,5.78971746,172.72,172.68,8.00239229]
[1748504226255,5.78971746,172.72,172.68,0.14216157]
[1748504226569,29.52401111,172.72,172.68,8.00239229]
[1748504229761,29.52401111,172.72,172.69,7.86023072]
[1748504244309,7.86023072,172.7,172.65,18.64964886]
[1748504244471,7.86023072,172.69,172.64,7.86023072]
[1748504244676,7.86023072,172.68,172.61,18.64964886]
[1748504244886,7.86023072,172.67,172.63,18.64964886]
[1748504245186,7.86023072,172.68,172.63,26.50987958]
[1748504246198,14.4777308,172.68,172.64,7.86023072]
[1748504247187,20.2687894,172.68,172.63,7.86023072]
[1748504251698,28.12902012,172.68,172.63,7.86023072]
[1748504254496,28.12902012,172.68,172.61,18.933972]
[1748504254725,28.12902012,172.68,172.63,7.86023072]
[1748504255420,28.12902012,172.68,172.61,18.933972]
[1748504255600,28.12902012,172.68,172.63,7.86023072]
[1748504257336,14.4777308,172.68,172.64,7.86023072]
[1748504257821,14.4777308,172.68,172.65,0.14216157]
[1748504258403,14.4777308,172.68,172.65,8.00239229]
[1748504258823,5.79072326,172.69,172.66,26.50987958]
[1748504259004,5.79072326,172.69,172.68,7.86023072]
[1748504259197,20.26582795,172.71,172.68,7.86023072]
[1748504259402,5.79005268,172.71,172.68,7.86023072]
[1748504261132,5.79005268,172.71,172.69,7.86023072]
[1748504270336,5.79005268,172.71,172.7,18.79181043]
[1748504270506,5.79005268,172.71,172.7,8.00239229]
[1748504276429,15.04982015,172.72,172.7,8.14455386]
[1748504276630,15.04982015,172.72,172.71,26.65204115]
[1748504277727,15.04982015,172.72,172.71,26.79420272]
[1748504280048,22.33089351,172.77,172.72,0.28432314]
[1748504280049,5.78926154,172.74,172.72,0.28432314]
[1748504280217,5.78837693,172.76,172.75,18.933972]
[1748504280528,5.78837693,172.76,172.75,26.79420272]
[1748504280914,15.0281149,172.77,172.76,0.14216157]
[1748504281116,15.0281149,172.77,172.76,26.65204115]
[1748504281329,5.78737195,172.79,172.77,18.64964886]
[1748504281529,5.78737195,172.79,172.77,26.50987958]
[1748504282137,20.25519852,172.8,172.77,26.50987958]
[1748504286154,20.25519852,172.8,172.78,0.14216157]
[1748504286447,5.78703703,172.8,172.78,8.00239229]
[1748504286633,5.78703703,172.8,172.79,18.79181043]
[1748504290929,5.78703703,172.8,172.79,26.65204115]
[1748504294530,5.78703703,172.8,172.79,26.79420272]
[1748504298638,5.78703703,172.8,172.79,0.28432314]
[1748504298868,5.78703703,172.8,172.79,26.79420272]
[1748504301453,5.78703703,172.8,172.79,18.933972]
[1748504301851,5.78703703,172.8,172.79,26.79420272]
[1748504306662,14.46565158,172.83,172.8,0.14216157]
[1748504306866,14.46565158,172.83,172.81,18.64964886]
[1748504313443,14.46565158,172.83,172.8,0.14216157]
[1748504313648,14.46565158,172.83,172.8,18.79181043]
[1748504315451,20.25168409,172.83,172.8,18.79181043]
[1748504316150,20.25168409,172.83,172.8,8.00239229]
[1748504317578,14.46565158,172.83,172.8,8.00239229]
[1748504323297,14.46565158,172.83,172.79,0.14216157]
[1748504323298,13.86565158,172.83,172.81,7.86023072]
[1748504324266,13.86565158,172.83,172.81,18.64964886]
[1748504328188,13.86565158,172.83,172.8,18.64964886]
[1748504337325,19.65168409,172.83,172.8,18.64964886]
[1748504341528,27.51191481,172.83,172.79,18.64964886]
[1748504343306,19.65168409,172.83,172.81,18.64964886]
[1748504343504,19.65168409,172.83,172.82,26.65204115]
[1748504343505,5.78603251,172.83,172.82,26.65204115]
[1748504343716,5.78575455,172.84,172.83,18.933972]
[1748504344022,5.78575455,172.84,172.83,26.79420272]
[1748504352249,5.78575455,172.84,172.83,8.14455386]
[1748504352428,5.78575455,172.84,172.83,0.28432314]
[1748504352738,5.78575455,172.84,172.83,8.14455386]
[1748504353855,5.78575455,172.84,172.83,26.79420272]
[1748504355328,5.78575455,172.84,172.83,26.50987958]
[1748504355547,5.78575455,172.84,172.83,18.64964886]
[1748504355720,13.64598527,172.84,172.79,18.64964886]
[1748504355925,7.86023072,172.83,172.79,18.64964886]
[1748504356531,13.64598527,172.84,172.79,7.86023072]
[1748504356729,28.11022965,172.84,172.79,7.86023072]
[1748504360222,28.11022965,172.84,172.79,0.14216157]
[1748504361051,28.11022965,172.84,172.79,8.00239229]
[1748504361662,28.11022965,172.84,172.79,0.14216157]
[1748504361821,28.11022965,172.84,172.79,8.00239229]
[1748504364123,28.11022965,172.84,172.79,0.14216157]
[1748504364530,7.86023072,172.82,172.77,0.14216157]
[1748504364730,7.86023072,172.82,172.78,18.79181043]
[1748504366572,5.78670215,172.81,172.78,18.79181043]
[1748504368270,20.25274826,172.82,172.78,18.79181043]
[1748504368446,28.11297898,172.82,172.78,18.79181043]
[1748504369258,20.25274826,172.82,172.78,18.79181043]
[1748504371179,20.25274826,172.82,172.77,0.28432314]
[1748504371381,20.25274826,172.82,172.77,8.14455386]
[1748504373875,29.43274826,172.82,172.77,8.14455386]
[1748504376978,37.29297898,172.82,172.77,8.14455386]
[1748504378395,37.29297898,172.82,172.77,0.28432314]
[1748504378555,7.86023072,172.81,172.77,0.14216157]
[1748504380484,5.78703703,172.8,172.77,0.14216157]
[1748504386962,20.25462962,172.8,172.76,8.14455386]
[1748504387159,28.11486034,172.8,172.75,7.86023072]
[1748504387472,7.86023072,172.79,172.74,26.50987958]
[1748504387783,155.16023072,172.79,172.74,18.64964886]
[1748504388359,28.1172049,172.78,172.74,18.64964886]
[1748504388567,28.1172049,172.78,172.73,18.64964886]
[1748504388817,63.5372049,172.78,172.73,18.64964886]
[1748504390071,7.86023072,172.77,172.72,26.79420272]
[1748504390487,20.25931927,172.76,172.72,26.79420272]
[1748504391571,14.47094234,172.76,172.72,26.79420272]
[1748504393084,14.47094234,172.76,172.73,7.86023072]
[1748504393581,14.47094234,172.76,172.72,18.933972]
[1748504393786,14.47094234,172.76,172.73,7.86023072]
[1748504401290,5.7880419,172.77,172.76,18.64964886]
[1748504401497,153.08764128,172.79,172.77,0.14216157]
[1748504401703,5.78764128,172.79,172.78,26.79420272]
[1748504401916,5.78670215,172.81,172.79,18.933972]
[1748504402205,5.78670215,172.81,172.8,8.00239229]
[1748504402582,5.78670215,172.81,172.8,0.14216157]
[1748504405298,5.78670215,172.81,172.8,8.00239229]
[1748504409144,5.78670215,172.81,172.8,0.14216157]
[1748504411337,5.61554215,172.81,172.8,0.14216157]
[1748504414834,14.96637206,172.82,172.81,0.28432314]
[1748504415003,14.96637206,172.82,172.81,26.79420272]
[1748504424514,9.18,172.82,172.81,26.79420272]
[1748504425915,5.7861469,172.83,172.82,18.933972]
[1748504426234,5.7861469,172.83,172.82,26.79420272]
[1748504426443,5.78543151,172.85,172.83,0.14216157]
[1748504426626,5.78543151,172.85,172.84,26.79420272]
[1748504432544,5.78543151,172.85,172.84,18.933972]
[1748504436230,5.78543151,172.85,172.84,18.763154]
[1748504438257,5.78543151,172.85,172.84,18.90531557]
[1748504443769,5.78543151,172.85,172.84,26.76554629]
[1748504445774,5.7846937,172.87,172.84,26.76554629]
[1748504449602,5.7846937,172.87,172.84,18.90531557]
[1748504449800,5.7846937,172.87,172.84,26.76554629]
[1748504451080,5.7846937,172.87,172.85,18.64964886]
[1748504458092,20.24642795,172.87,172.84,18.64964886]
[1748504458921,28.10665867,172.87,172.83,18.64964886]
[1748504459493,20.24642795,172.87,172.83,18.64964886]
[1748504460017,20.24642795,172.87,172.83,7.86023072]
[1748504463966,20.24642795,172.87,172.79,18.64964886]
[1748504464168,20.24642795,172.87,172.78,26.0]
[1748504464169,7.86023072,172.83,172.78,18.64964886]
[1748504464412,7.86023072,172.82,172.78,18.64964886]
[1748504464599,7.86023072,172.81,172.77,18.64964886]
[1748504464781,7.86023072,172.81,172.78,0.28432314]
[1748504464979,7.86023072,172.81,172.77,18.64964886]
[1748504465188,7.86023072,172.8,172.76,18.64964886]
[1748504465404,13.64760267,172.79,172.76,18.64964886]
[1748504465700,7.86023072,172.77,172.71,7.86023072]
[1748504465882,55.59580183,172.79,172.72,18.64964886]
[1748504465883,17.00023072,172.76,172.72,18.64964886]
[1748504466397,9.14,172.76,172.72,7.86023072]
[1748504467272,5.78871201,172.75,172.72,7.86023072]
[1748504468796,5.78871201,172.75,172.71,0.28432314]
[1748504468982,5.78871201,172.75,172.72,7.86023072]
[1748504469295,7.86023072,172.74,172.69,18.64964886]
[1748504469593,7.86023072,172.73,172.7,0.28432314]
[1748504471065,7.86023072,172.74,172.7,0.28432314]
[1748504471270,7.86023072,172.72,172.64,7.7909]
[1748504471470,7.86023072,172.72,172.68,18.64964886]
[1748504471981,20.26283795,172.73,172.68,26.50987958]
[1748504472189,28.12306867,172.73,172.68,26.50987958]
[1748504472699,20.26283795,172.73,172.68,26.50987958]
[1748504473576,28.12306867,172.73,172.68,18.64964886]
[1748504474002,28.12306867,172.73,172.64,10.74519745]
[1748504474003,7.86023072,172.7,172.66,18.64964886]
[1748504474200,17.00023072,172.7,172.66,18.64964886]
[1748504474400,17.00023072,172.7,172.65,26.50987958]
[1748504475594,17.00023072,172.7,172.65,18.64964886]
[1748504475792,5.79072326,172.69,172.65,26.50987958]
[1748504475988,5.79072326,172.69,172.65,30.94324144]
[1748504477401,20.26753141,172.69,172.65,30.94324144]
[1748504483508,20.26753141,172.69,172.65,18.64964886]
[1748504483893,20.26753141,172.69,172.65,30.94324144]
[1748504484712,32.56112399,172.69,172.64,12.57791572]
[1748504484916,32.56112399,172.69,172.65,18.64964886]
[1748504487292,32.56112399,172.69,172.64,0.28432314]
[1748504488207,32.56112399,172.69,172.64,12.57791572]
[1748504490099,32.56112399,172.69,172.64,0.28432314]
[1748504491833,32.56112399,172.69,172.65,18.64964886]
[1748504493516,32.56112399,172.69,172.64,0.28432314]
[1748504493718,32.56112399,172.69,172.65,18.64964886]
[1748504493923,12.29359258,172.68,172.64,0.28432314]
[1748504494121,20.26753141,172.69,172.64,0.28432314]
[1748504494325,32.56112399,172.69,172.65,18.64964886]
[1748504498013,28.13685758,172.69,172.65,18.64964886]
[1748504498606,5.79139398,172.67,172.64,18.933972]
[1748504500421,5.79139398,172.67,172.64,0.28432314]
[1748504500623,5.79139398,172.67,172.61,26.51897503]
[1748504500624,7.86932617,172.66,172.61,26.51897503]
[1748504500925,7.86932617,172.66,172.62,0.28432314]
[1748504501098,7.86932617,172.66,172.62,0.14216157]
[1748504501808,5.79206487,172.65,172.62,0.28432314]
[1748504502605,5.79206487,172.65,172.62,8.15364931]
[1748504503427,5.79206487,172.65,172.62,0.28432314]
[1748504503627,5.79206487,172.65,172.62,8.15364931]
[1748504503932,5.79172941,172.66,172.62,8.15364931]
[1748504504101,5.79172941,172.66,172.64,18.64964886]
[1748504505734,5.7910586,172.68,172.64,18.64964886]
[1748504507412,5.7910586,172.68,172.6,33.5863]
[1748504507413,5.7910586,172.68,172.61,18.933972]
[1748504507630,5.7910586,172.68,172.64,18.64964886]
[1748504509038,5.7910586,172.68,172.64,26.51897503]
[1748504509610,14.9310586,172.68,172.64,26.51897503]
[1748504512621,14.9310586,172.68,172.66,18.64964886]
[1748504516753,14.9310586,172.68,172.61,18.933972]
[1748504516958,14.9310586,172.68,172.65,0.28432314]
[1748504519555,14.9310586,172.68,172.65,18.933972]
[1748504522149,14.9310586,172.68,172.65,8.15364931]
[1748504525274,14.9310586,172.68,172.67,18.64964886]
[1748504527770,14.9310586,172.68,172.65,7.86932617]
[1748504532758,14.9310586,172.68,172.67,18.64964886]
[1748504533870,14.9310586,172.68,172.64,0.28432314]
[1748504534074,14.9310586,172.68,172.65,18.64964886]
[1748504534260,37.27803128,172.68,172.64,18.64964886]
[1748504534462,29.40870511,172.68,172.64,26.51897503]
[1748504536383,29.40870511,172.68,172.61,18.933972]
[1748504536384,37.27803128,172.68,172.61,18.933972]
[1748504536611,7.86932617,172.66,172.63,18.64964886]
[1748504536761,7.86932617,172.65,172.63,18.64964886]
[1748504536960,7.86932617,172.65,172.57,18.64964886]
[1748504537155,7.86932617,172.65,172.6,18.64964886]
[1748504537361,43.22932617,172.66,172.61,0.28432314]
[1748504538084,43.22932617,172.66,172.62,18.64964886]
[1748504538465,5.79206487,172.65,172.62,18.64964886]
[1748504539474,5.79206487,172.65,172.64,18.64964886]
[1748504541474,5.79172941,172.66,172.64,18.64964886]
[1748504541874,5.79172941,172.66,172.64,7.86932617]
[1748504543273,5.79172941,172.66,172.65,26.80329817]
[1748504543475,23.61764651,172.68,172.58,5.79437554]
[1748504543476,5.79139398,172.67,172.58,5.79437554]
[1748504543692,5.79139398,172.67,172.65,18.64964886]
[1748504549078,20.26987895,172.67,172.63,7.86932617]
[1748504549281,28.13920512,172.67,172.63,18.64964886]
[1748504549482,28.13920512,172.67,172.62,18.64964886]
[1748504549683,28.13920512,172.67,172.62,26.51897503]
[1748504549984,28.13920512,172.67,172.62,7.86932617]
[1748504553100,20.27222704,172.65,172.62,18.64964886]
[1748504557216,14.48016217,172.65,172.62,18.64964886]
[1748504558512,14.48016217,172.65,172.62,26.51897503]
[1748504568007,5.79172941,172.66,172.64,26.51897503]
[1748504570134,5.79172941,172.66,172.64,18.64964886]
[1748504574538,14.93172941,172.66,172.64,18.64964886]
[1748504576538,5.79172941,172.66,172.64,18.64964886]
[1748504576744,14.93172941,172.66,172.64,18.64964886]
[1748504578038,14.93172941,172.66,172.64,26.51897503]
[1748504579742,9.14,172.66,172.65,26.80329817]
[1748504579943,14.47576613,172.71,172.67,0.28432314]
[1748504579944,14.91038795,172.7,172.67,0.28432314]
[1748504580117,14.91038795,172.7,172.69,18.64964886]
[1748504586133,14.91038795,172.7,172.68,18.64964886]
[1748504591931,14.91038795,172.7,172.68,7.86932617]
[1748504596541,14.91038795,172.7,172.69,18.64964886]
[1748504597345,14.91038795,172.7,172.68,18.64964886]
[1748504600569,29.38635783,172.7,172.63,18.933972]
[1748504600867,29.38635783,172.7,172.68,18.933972]
[1748504607959,9.12,172.7,172.68,18.933972]
[1748504608194,5.79016972,172.71,172.7,18.64964886]
[1748504608352,5.78938227,172.73,172.71,0.28432314]
[1748504608552,5.78938227,172.73,172.72,26.80329817]
[1748504609148,14.90770691,172.78,172.73,18.933972]
[1748504609365,14.90770691,172.78,172.77,18.64964886]
[1748504621502,14.90770691,172.78,172.77,26.80329817]
[1748504624317,5.78746035,172.79,172.78,18.64964886]
[1748504624514,5.78746035,172.79,172.78,26.51897503]
[1748504625086,5.78746035,172.79,172.78,18.64964886]
[1748504625292,5.78746035,172.79,172.75,26.0]
[1748504625293,20.25589023,172.79,172.76,26.80329817]
[1748504626413,14.46842988,172.79,172.76,26.80329817]
[1748504629212,14.46842988,172.79,172.76,7.86932617]
[1748504629553,20.25580183,172.79,172.76,7.86932617]
[1748504632304,20.25580183,172.79,172.73,18.933972]
[1748504632635,7.86932617,172.78,172.73,26.51897503]
[1748504632836,9.12,172.77,172.74,0.14216157]
[1748504633138,9.12,172.77,172.74,0.28432314]
[1748504633541,16.98932617,172.77,172.71,18.64964886]
[1748504633751,16.98932617,172.77,172.72,7.86932617]
[1748504634314,20.25931927,172.76,172.72,7.86932617]
[1748504639340,20.25931927,172.76,172.74,18.64964886]
[1748504639717,20.25931927,172.76,172.73,7.86932617]
[1748504639932,20.25931927,172.76,172.74,18.64964886]
[1748504643635,20.25931927,172.76,172.72,8.15364931]
[1748504645867,20.25931927,172.76,172.74,18.64964886]
[1748504655466,20.25931927,172.76,172.72,8.15364931]
[1748504655667,20.25931927,172.76,172.73,18.64964886]
[1748504655887,20.25931927,172.76,172.69,18.933972]
[1748504656086,20.25931927,172.76,172.73,18.64964886]
[1748504656515,28.12864544,172.76,172.71,7.86932617]
[1748504656812,28.12864544,172.76,172.72,18.933972]
[1748504660101,9.12,172.75,172.72,26.80329817]
[1748504661391,5.78904712,172.74,172.72,26.80329817]
[1748504676719,5.78904712,172.74,172.7,44.933972]
[1748504676925,5.78904712,172.74,172.73,18.64964886]
[1748504679402,14.47094234,172.76,172.73,18.64964886]
[1748504680610,14.47094234,172.76,172.73,7.86932617]
[1748504680808,14.8880419,172.77,172.76,18.933972]
[1748504681023,9.1,172.77,172.76,26.80329817]
[1748504684418,29.3527089,172.82,172.76,26.80329817]
[1748504684619,29.3527089,172.82,172.79,18.64964886]
[1748504686020,7.86932617,172.81,172.76,7.86932617]
[1748504687435,20.25462962,172.8,172.76,7.86932617]
[1748504690273,57.05914097,172.8,172.74,18.64964886]
[1748504690583,7.86932617,172.78,172.73,18.64964886]
[1748504690948,35.3,172.79,172.73,7.86932617]
[1748504691273,43.16932617,172.79,172.74,26.80329817]
[1748504691645,20.25697418,172.78,172.74,26.80329817]
[1748504692573,20.25697418,172.78,172.74,0.28432314]
[1748504695074,5.78837693,172.76,172.74,0.28432314]
[1748504699382,5.78837693,172.76,172.72,26.51897503]
[1748504699568,20.25931927,172.76,172.73,0.28432314]
[1748504700565,20.25931927,172.76,172.72,26.51897503]
[1748504701354,28.12864544,172.76,172.72,18.64964886]
[1748504701865,20.25931927,172.76,172.72,7.86932617]
[1748504704006,20.25931927,172.76,172.74,18.64964886]
[1748504705870,5.78837693,172.76,172.74,7.86932617]
[1748504707975,5.78837693,172.76,172.74,18.64964886]
[1748504708175,5.78837693,172.76,172.74,18.933972]
[1748504710581,20.25931927,172.76,172.73,18.64964886]
[1748504716307,20.25931927,172.76,172.69,18.933972]
[1748504716503,20.25931927,172.76,172.73,18.64964886]
[1748504718909,20.25931927,172.76,172.69,0.28432314]
[1748504718910,20.25931927,172.76,172.69,18.933972]
[1748504719207,29.35931927,172.76,172.73,18.64964886]
[1748504725711,14.88837693,172.76,172.73,7.86932617]
[1748504725920,14.88837693,172.76,172.75,18.64964886]
[1748504726990,14.88837693,172.76,172.74,18.933972]
[1748504728807,14.88837693,172.76,172.74,26.80329817]
[1748504730813,14.88837693,172.76,172.74,18.933972]
[1748504734198,14.88837693,172.76,172.74,8.15364931]
[1748504734723,14.88837693,172.76,172.74,0.28432314]
[1748504734935,5.78837693,172.76,172.74,18.933972]
[1748504736026,5.78837693,172.76,172.74,18.79181043]
[1748504736230,20.25849205,172.77,172.74,18.79181043]
[1748504737322,20.25849205,172.77,172.7,0.28432314]
[1748504737630,20.25849205,172.77,172.72,18.64964886]
[1748504737631,7.86932617,172.75,172.72,18.64964886]
[1748504737835,7.86932617,172.73,172.65,18.64964886]
[1748504738132,7.86932617,172.7,172.65,7.86932617]
[1748504738325,7.86932617,172.7,172.66,0.14216157]
[1748504738504,7.86932617,172.7,172.66,18.79181043]
[1748504738933,9.1,172.72,172.66,8.01148774]
[1748504738934,7.86932617,172.71,172.66,8.01148774]
[1748504739106,9.1,172.72,172.68,8.01148774]
[1748504739312,9.1,172.72,172.68,7.86932617]
[1748504740036,5.79005268,172.71,172.68,7.86932617]
[1748504743114,5.79005268,172.71,172.68,18.79181043]
[1748504743738,5.79005268,172.71,172.68,8.01148774]
[1748504744717,13.65937885,172.71,172.68,18.79181043]
[1748504744941,13.65937885,172.71,172.68,18.64964886]
[1748504748247,7.86932617,172.7,172.66,8.01148774]
[1748504749714,5.79072326,172.69,172.66,8.01148774]
[1748504751941,20.26635783,172.7,172.66,8.01148774]
[1748504755829,20.26635783,172.7,172.66,0.14216157]
[1748504756029,20.26635783,172.7,172.66,8.01148774]
[1748504758553,20.26635783,172.7,172.66,0.14216157]
[1748504758858,20.26635783,172.7,172.66,8.01148774]
[1748504759554,22.34529605,172.7,172.66,8.01148774]
[1748504760258,14.47596988,172.7,172.66,8.01148774]
[1748504760428,28.135684,172.7,172.66,8.01148774]
[1748504761627,20.26635783,172.7,172.66,8.01148774]
[1748504763266,5.79038795,172.7,172.69,26.6611366]
[1748504763464,5.79014789,172.71,172.7,18.933972]
[1748504763645,5.79014789,172.71,172.7,26.80329817]
[1748504763957,14.88982955,172.72,172.71,0.14216157]
[1748504764147,14.88982955,172.72,172.71,26.80329817]
[1748504764347,9.1,172.72,172.71,26.80329817]
[1748504767255,14.47137794,172.76,172.73,0.14216157]
[1748504767256,5.78837693,172.76,172.73,0.14216157]
[1748504767566,5.78837693,172.76,172.75,26.6611366]
[1748504773673,14.86809668,172.77,172.76,18.79181043]
[1748504773868,14.86809668,172.77,172.76,26.6611366]
[1748504775358,9.08,172.77,172.76,26.80329817]
[1748504775562,5.78670215,172.81,172.77,0.14216157]
[1748504775869,5.78670215,172.81,172.8,26.6611366]
[1748504776284,5.78670215,172.81,172.8,18.64964886]
[1748504776454,5.78670215,172.81,172.79,18.64964886]
[1748504776775,5.78670215,172.81,172.78,7.86932617]
[1748504777076,5.78670215,172.81,172.79,18.64964886]
[1748504778889,28.12278371,172.81,172.77,0.14216157]
[1748504780070,32.53236777,172.81,172.77,0.14216157]
[1748504781479,20.25345754,172.81,172.78,18.64964886]
[1748504784580,20.25580183,172.79,172.72,18.933972]
[1748504784772,32.53471206,172.79,172.75,18.79181043]
[1748504785480,20.25580183,172.79,172.75,12.4210718]
[1748504786359,20.25580183,172.79,172.75,0.14216157]
[1748504786360,12.27891023,172.78,172.75,0.14216157]
[1748504786558,5.78837693,172.76,172.73,0.14216157]
[1748504786764,5.78837693,172.76,172.72,30.92855909]
[1748504786981,20.25931927,172.76,172.72,30.92855909]
[1748504787165,20.25931927,172.76,172.73,0.14216157]
[1748504787376,29.33931927,172.76,172.73,0.14216157]
[1748504791404,14.86837693,172.76,172.74,18.64964886]
[1748504791581,14.86837693,172.76,172.75,12.56323337]
[1748504791773,14.86837693,172.76,172.75,0.14216157]
[1748504792595,29.33931927,172.76,172.73,18.79181043]
[1748504799011,41.6182295,172.76,172.72,0.14216157]
[1748504799175,12.27891023,172.75,172.72,0.14216157]
[1748504800909,5.78904712,172.74,172.72,0.14216157]
[1748504803075,20.26166492,172.74,172.7,30.92855909]
[1748504803279,32.54057515,172.74,172.7,18.64964886]
[1748504807890,28.12576786,172.74,172.69,7.86410294]
[1748504808096,28.12576786,172.74,172.7,18.79181043]
[1748504808992,7.86410294,172.73,172.7,0.14216157]
[1748504809600,28.12576786,172.74,172.7,18.79181043]
[1748504812412,7.86410294,172.73,172.7,0.14216157]
[1748504812721,7.86410294,172.73,172.69,0.14216157]
[1748504813595,5.78971746,172.72,172.69,0.28432314]
[1748504818025,28.12811405,172.72,172.68,0.42648471]
[1748504818226,28.12811405,172.72,172.68,0.28432314]
[1748504818449,7.86410294,172.69,172.65,18.79181043]
[1748504819730,5.7910586,172.68,172.66,0.14216157]
[1748504819922,5.7910586,172.68,172.65,18.79181043]
[1748504820324,5.7910586,172.68,172.66,0.14216157]
[1748504823544,5.79072326,172.69,172.65,0.14216157]
[1748504823740,5.79072326,172.69,172.66,0.28432314]
[1748504823948,13.6548262,172.69,172.66,0.28432314]
[1748504831061,7.86410294,172.68,172.64,0.28432314]
[1748504831260,7.86410294,172.67,172.64,0.28432314]
[1748504832940,20.27105293,172.66,172.62,0.14216157]
[1748504833145,20.27105293,172.66,172.62,18.79181043]
[1748504834655,28.13515587,172.66,172.62,18.79181043]
[1748504835169,7.86410294,172.65,172.59,19.07613357]
[1748504835352,7.86410294,172.65,172.61,18.933972]
[1748504835868,20.27105293,172.66,172.61,18.933972]
[1748504835869,28.13515587,172.66,172.61,18.933972]
[1748504836105,28.13515587,172.66,172.61,26.79807494]
[1748504836567,28.13515587,172.66,172.61,18.933972]
[1748504837069,7.86410294,172.66,172.61,18.933972]
[1748504839073,20.27222704,172.65,172.61,18.933972]
[1748504839273,28.13632998,172.65,172.61,18.933972]
[1748504840271,20.27222704,172.65,172.61,8.14842608]
[1748504840447,5.79206487,172.65,172.61,8.14842608]
[1748504841582,13.65583235,172.66,172.61,8.14842608]
[1748504842659,5.79172941,172.66,172.63,18.79181043]
[1748504846681,5.79172941,172.66,172.59,19.07613357]
[1748504846682,7.86410294,172.65,172.59,19.07613357]
[1748504846856,7.86410294,172.65,172.61,19.07613357]
[1748504847058,20.27105293,172.66,172.61,26.94023651]
[1748504847257,20.27105293,172.66,172.63,18.79181043]
[1748504849379,5.79172941,172.66,172.63,18.79181043]
[1748504852581,5.79172941,172.66,172.59,19.07613357]
[1748504852757,5.79172941,172.66,172.63,18.79181043]
[1748504853174,13.65583235,172.66,172.62,0.28432314]
[1748504854571,28.13515587,172.66,172.62,0.28432314]
[1748504857001,7.86410294,172.64,172.6,0.14216157]
[1748504857304,7.86410294,172.62,172.6,0.14216157]
[1748504857590,7.86410294,172.62,172.59,0.14216157]
[1748504858401,5.7934071,172.61,172.59,0.14216157]
[1748504860411,20.27475469,172.63,172.59,0.28432314]
[1748504860587,20.27475469,172.63,172.59,8.14842608]
[1748504861396,5.7927359,172.63,172.61,0.14216157]
[1748504862309,5.79247442,172.64,172.63,0.14216157]
[1748504862515,5.79247442,172.64,172.63,26.79807494]
[1748504862990,5.79247442,172.64,172.63,18.933972]
[1748504863306,5.79247442,172.64,172.63,18.79181043]
[1748504863921,5.79206487,172.65,172.64,18.79181043]
[1748504867838,5.79206487,172.65,172.64,0.14216157]
[1748504868124,13.65616781,172.65,172.64,0.14216157]
[1748504868294,5.79206487,172.65,172.64,0.14216157]
[1748504869504,20.27146646,172.66,172.64,0.14216157]
[1748504870119,28.1355694,172.66,172.64,0.14216157]
[1748504870302,20.27146646,172.66,172.64,0.14216157]
[1748504871594,5.79172941,172.66,172.65,0.14216157]
[1748504871796,5.79172941,172.66,172.64,0.14216157]
[1748504878826,5.79172941,172.66,172.59,19.07613357]
[1748504879021,5.79172941,172.66,172.63,18.933972]
[1748504882011,5.79172941,172.66,172.63,26.79807494]
[1748504884030,5.79172941,172.66,172.65,26.65591337]
[1748504884728,5.79172941,172.66,172.65,18.79181043]
[1748504886143,5.79172941,172.66,172.65,0.14216157]
[1748504886317,5.79172941,172.66,172.64,0.14216157]
[1748504887740,5.79172941,172.66,172.63,19.07613357]
[1748504888733,5.79172941,172.66,172.63,18.933972]
[1748504889334,5.79172941,172.66,172.63,0.14216157]
[1748504889335,13.65583235,172.66,172.63,0.14216157]
[1748504890038,28.13515587,172.66,172.62,18.79181043]
[1748504890237,20.27105293,172.66,172.62,18.79181043]
[1748504892646,20.27105293,172.66,172.62,8.00626451]
[1748504892937,20.27105293,172.66,172.64,18.79181043]
[1748504893323,20.27105293,172.66,172.64,0.14216157]
[1748504901350,26.0,172.64,172.6,0.14216157]
[1748504901526,7.86410294,172.61,172.6,0.14216157]
[1748504901734,16.92410294,172.61,172.55,0.14216157]
[1748504902041,7.86410294,172.59,172.55,19.07613357]
[1748504902847,7.86410294,172.59,172.55,18.79181043]
[1748504903231,5.79441418,172.58,172.55,18.79181043]
[1748504903432,5.79441418,172.58,172.56,0.14216157]
[1748504907439,7.86410294,172.57,172.55,0.14216157]
[1748504907641,28.14455258,172.58,172.54,18.933972]
[1748504907846,28.14455258,172.58,172.54,0.28432314]
[1748504908041,28.14455258,172.58,172.54,18.933972]
[1748504908934,7.86410294,172.57,172.54,18.933972]
[1748504909165,7.86410294,172.57,172.54,0.14216157]
[1748504909346,7.86410294,172.57,172.53,0.14216157]
[1748504911049,5.79508576,172.56,172.53,0.14216157]
[1748504911341,5.79508576,172.56,172.53,0.28432314]
[1748504912361,20.28280017,172.56,172.53,0.14216157]